[Event "SWE-ch Junior 2019"]
[Site "Eskilstuna"]
[Date "2019.07.11"]
[Round "6.1"]
[White "Carlsson, Ludvig"]
[Black "Torngren, Gustav"]
[Result "1-0"]
[ECO "B04"]
[WhiteElo "2218"]
[BlackElo "2109"]
[Annotator "NA"]
[PlyCount "89"]
[EventDate "2019.07.06"]
[EventType "tourn"]
[EventCountry "SWE"]
[SourceTitle "playchess.com"]
[Source "ChessBase"]
[SourceQuality "1"]
[TimeControl "40/5400+30:1800+30"]

1. e4 {[%emt 0:00:00]} Nf6 {[%emt 0:00:22]} 2. e5 {[%emt 0:01:34]} Nd5 {[%emt 0:00:15]} 3. d4 {[%emt 0:00:07]} d6 {[%emt 0:00:22]} 4. Nf3 {[%emt 0:00:09]} Nb6 {[%emt 0:00:40]} 5. a4 {[%emt 0:00:09]} a5 {[%emt 0:00:30]} 6. exd6 {[%emt 0:00:09]} cxd6 {[%emt 0:00:33]} 7. d5 {[%emt 0:00:09]} Bg4 {[%emt 0:16:37]} 8. Bb5+ {[%emt 0:04:26]} N6d7 {[%emt 0:04:06]} 9. O-O {[%emt 0:00:35]} e5 {[%emt 0:11:41]} 10. dxe6 {[%emt 0:00:43]} fxe6 {[%emt 0:00:11]} 11. h3 {[%emt 0:05:58]} Bh5 {[%emt 0:02:45]} 12. Re1 {[%emt 0:02:36]} Be7 {[%emt 0:13:16]} 13. Rxe6 {[%emt 0:09:34]} O-O {[%emt 0:01:38]} 14. Re3 {[%emt 0:00:09]} Nc5 {[%emt 0:05:12]} 15. Nc3 {[%emt 0:12:43]} Nc6 {[%emt 0:00:26]} 16. g4 {[%emt 0:00:50]} Bg6 {[%emt 0:02:19]} 17. Nd5 {[%emt 0:01:46]} Bh4 {[%emt 0:01:31]} 18. Bxc6 {[%emt 0:01:54]} bxc6 {[%emt 0:02:00]} 19. Nxh4 {[%emt 0:00:10]} Qxh4 {[%emt 0:01:06]} 20. Ne7+ {[%emt 0:00:07]} Kh8 {[%emt 0:00:05]} 21. Nxg6+ {[%emt 0:00:14]} hxg6 {[%emt 0:00:07]} 22. Qe1 {[%emt 0:01:06]} d5 {[%emt 0:02:24]} 23. Raa3 {[%emt 0:01:35]} g5 {[%emt 0:03:12]} 24. f3 {[%emt 0:04:54]} Qh6 {[%emt 0:11:20]} 25. Re5 {[%emt 0:00:28]} Qh7 {[%emt 0:02:09]} 26. Rxg5 {[%emt 0:03:20]} Qxc2 {[%emt 0:02:55]} 27. Rc3 {[%emt 0:00:51]} Qxa4 {[%emt 0:00:54]} 28. Rxc5 {[%emt 0:02:09]} Qd4+ {[%emt 0:00:58]} 29. Be3 {[%emt 0:00:10]} Qxb2 {[%emt 0:00:14]} 30. Qc3 {[%emt 0:02:51]} Qxc3 {[%emt 0:03:11]} 31. Rxc3 {[%emt 0:00:05]} Rxf3 {[%emt 0:00:03]} 32. Bd4 {[%emt 0:00:05]} Rf7 {[%emt 0:00:13]} 33. Rxc6 {[%emt 0:00:24]} a4 {[%emt 0:03:56]} 34. Rcg6 {[%emt 0:00:06]} Raa7 {[%emt 0:02:13]} 35. Rxd5 {[%emt 0:00:46]} Kh7 {[%emt 0:02:11]} 36. Rgd6 {[%emt 0:00:43]} Ra8 {[%emt 0:00:55]} 37. Rd7 {[%emt 0:03:43]} Raf8 {[%emt 0:00:30]} 38. Rxf7 {[%emt 0:01:13]} Rxf7 {[%emt 0:00:13]} 39. Ra5 {[%emt 0:00:06]} Rf3 {[%emt 0:00:28]} 40. Kg2 {[%emt 0:00:06]} Ra3 {[%emt 0:00:44]} 41. Ra7 {[%emt 0:30:06]} Kh6 {[%emt 0:30:22]} 42. Bxg7+ {[%emt 0:01:39]} Kg5 {[%emt 0:00:15]} 43. Bf8 {[%emt 0:00:06]} Kf4 {[%emt 0:01:19]} 44. Bd6+ {[%emt 0:00:29]} Ke4 {[%emt 0:00:17]} 45. Bxa3 {[%emt 0:00:07]} 1-0

[Event "SWE-ch Junior 2019"]
[Site "Eskilstuna"]
[Date "2019.07.11"]
[Round "6.2"]
[White "Storme, Isak"]
[Black "Rasti, Arvin"]
[Result "1-0"]
[ECO "B76"]
[WhiteElo "2330"]
[BlackElo "2220"]
[Annotator "NA"]
[PlyCount "87"]
[EventDate "2019.07.06"]
[EventType "tourn"]
[EventCountry "SWE"]
[SourceTitle "playchess.com"]
[Source "ChessBase"]
[SourceQuality "1"]
[TimeControl "40/5400+30:1800+30"]

1. e4 {[%emt 0:00:00]} c5 {[%emt 0:00:00]} 2. Nf3 {[%emt 0:00:00]} d6 {[%emt 0:00:00]} 3. d4 {[%emt 0:00:00]} cxd4 {[%emt 0:00:05]} 4. Nxd4 {[%emt 0:00:00]} Nf6 {[%emt 0:00:06]} 5. Nc3 {[%emt 0:00:00]} g6 {[%emt 0:00:07]} 6. Be3 {[%emt 0:00:52]} Bg7 {[%emt 0:00:35]} 7. f3 {[%emt 0:00:07]} O-O {[%emt 0:00:06]} 8. Qd2 {[%emt 0:00:05]} Nc6 {[%emt 0:00:05]} 9. O-O-O {[%emt 0:00:08]} d5 {[%emt 0:00:03]} 10. Qe1 {[%emt 0:01:36]} e5 {[%emt 0:00:08]} 11. Nxc6 {[%emt 0:00:08]} bxc6 {[%emt 0:00:04]} 12. exd5 {[%emt 0:00:19]} Nxd5 {[%emt 0:00:04]} 13. Bc4 {[%emt 0:01:58]} Be6 {[%emt 0:00:25]} 14. Ne4 {[%emt 0:02:41]} h6 {[%emt 0:01:45]} 15. g4 {[%emt 0:05:40]} Qb8 {[%emt 0:14:33]} 16. Bc5 {[%emt 0:03:43]} Rd8 {[%emt 0:00:44]} 17. Qa5 {[%emt 0:14:49]} Nf4 {[%emt 0:18:10]} 18. Ba6 {[%emt 0:16:42]} Bd5 {[%emt 0:08:01]} 19. Rhe1 {[%emt 0:09:12]} Bf8 {[%emt 0:07:19]} 20. Nf6+ {[%emt 0:06:20]} Kg7 {[%emt 0:01:30]} 21. Bxf8+ {[%emt 0:01:48]} Kxf8 {[%emt 0:00:59]} 22. Qc3 {[%emt 0:06:09]} Bxa2 {[%emt 0:19:08]} 23. Nd7+ {[%emt 0:05:20]} Rxd7 {[%emt 0:00:10]} 24. Rxd7 {[%emt 0:00:05]} Be6 {[%emt 0:02:42]} 25. Qc5+ {[%emt 0:07:16]} Kg8 {[%emt 0:00:44]} 26. Rb7 {[%emt 0:00:27]} Qd8 {[%emt 0:00:32]} 27. Qxe5 {[%emt 0:00:19]} Nd5 {[%emt 0:00:36]} 28. Bc4 {[%emt 0:01:04]} Qa5 {[%emt 0:00:58]} 29. Kb1 {[%emt 0:03:44]} Qa4 {[%emt 0:02:31]} 30. b3 {[%emt 0:03:03]} Qa5 {[%emt 0:01:52]} 31. Bxd5 {[%emt 0:00:06]} cxd5 {[%emt 0:00:12]} 32. Rb8+ {[%emt 0:00:27]} Rxb8 {[%emt 0:00:12]} 33. Qxb8+ {[%emt 0:00:08]} Kh7 {[%emt 0:00:04]} 34. Qe5 {[%emt 0:00:17]} Qb4 {[%emt 0:00:31]} 35. Rd1 {[%emt 0:00:51]} a5 {[%emt 0:00:42]} 36. Rd4 {[%emt 0:01:11]} Qb5 {[%emt 0:00:39]} 37. Kb2 {[%emt 0:00:15]} Qf1 {[%emt 0:00:24]} 38. f4 {[%emt 0:02:20]} Qf2 {[%emt 0:00:41]} 39. h3 {[%emt 0:01:14]} Qg3 {[%emt 0:00:15]} 40. Rd3 {[%emt 0:00:18]} Qf2 {[%emt 0:00:16]} 41. Rc3 {[%emt 0:31:33]} Qf1 {[%emt 0:30:42]} 42. Rc7 {[%emt 0:00:25]} Qf2 {[%emt 0:00:45]} 43. Qxe6 {[%emt 0:00:27]} Qd4+ {[%emt 0:00:04]} 44. Ka2 {[%emt 0:00:11]} 1-0

[Event "SWE-ch Junior 2019"]
[Site "Eskilstuna"]
[Date "2019.07.11"]
[Round "6.3"]
[White "Sorensen, Hampus"]
[Black "Joensson, Jacob"]
[Result "1-0"]
[ECO "E12"]
[WhiteElo "2352"]
[BlackElo "1981"]
[Annotator "NA"]
[PlyCount "85"]
[EventDate "2019.07.06"]
[EventType "tourn"]
[EventCountry "SWE"]
[SourceTitle "playchess.com"]
[Source "ChessBase"]
[SourceQuality "1"]
[TimeControl "40/5400+30:1800+30"]

1. d4 {[%emt 0:00:00]} e6 {[%emt 0:00:00]} 2. c4 {[%emt 0:00:00]} Nf6 {[%emt 0:00:00]} 3. Nf3 {[%emt 0:00:23]} b6 {[%emt 0:00:00]} 4. a3 {[%emt 0:00:14]} Bb7 {[%emt 0:00:03]} 5. Nc3 {[%emt 0:01:04]} d5 {[%emt 0:00:50]} 6. Bg5 {[%emt 0:01:38]} Be7 {[%emt 0:01:14]} 7. Qa4+ {[%emt 0:00:22]} Qd7 {[%emt 0:00:17]} 8. Qc2 {[%emt 0:05:22]} O-O {[%emt 0:07:27]} 9. e3 {[%emt 0:03:26]} Rc8 {[%emt 0:15:44]} 10. Rd1 {[%emt 0:12:24]} h6 {[%emt 0:09:45]} 11. Bf4 {[%emt 0:04:45]} Bd6 {[%emt 0:03:37]} 12. Bg3 {[%emt 0:06:28]} a6 {[%emt 0:04:37]} 13. Be2 {[%emt 0:10:59]} Qe7 {[%emt 0:03:34]} 14. Bh4 {[%emt 0:03:30]} Nbd7 {[%emt 0:10:02]} 15. O-O {[%emt 0:01:43]} dxc4 {[%emt 0:04:25]} 16. Bxc4 {[%emt 0:00:58]} b5 {[%emt 0:00:26]} 17. Ba2 {[%emt 0:03:43]} c5 {[%emt 0:00:53]} 18. Bb1 {[%emt 0:07:10]} Nf8 {[%emt 0:03:57]} 19. dxc5 {[%emt 0:01:24]} Bxc5 {[%emt 0:01:12]} 20. Ne5 {[%emt 0:02:17]} b4 {[%emt 0:10:33]} 21. axb4 {[%emt 0:00:59]} Bxb4 {[%emt 0:00:07]} 22. Ng4 {[%emt 0:03:47]} Rc4 {[%emt 0:09:16]} 23. h3 {[%emt 0:06:00]} h5 {[%emt 0:02:24]} 24. Nxf6+ {[%emt 0:04:10]} gxf6 {[%emt 0:00:09]} 25. Bg3 {[%emt 0:00:13]} f5 {[%emt 0:01:27]} 26. Qe2 {[%emt 0:01:03]} Rac8 {[%emt 0:01:40]} 27. Qxh5 {[%emt 0:00:57]} Bxc3 {[%emt 0:00:30]} 28. bxc3 {[%emt 0:00:05]} Ng6 {[%emt 0:00:07]} 29. Rd4 {[%emt 0:03:47]} Rxc3 {[%emt 0:02:25]} 30. Bh4 {[%emt 0:01:27]} Nxh4 {[%emt 0:00:32]} 31. Rxh4 {[%emt 0:00:26]} Qf6 {[%emt 0:00:08]} 32. Rb4 {[%emt 0:05:02]} Bd5 {[%emt 0:02:03]} 33. e4 {[%emt 0:01:45]} fxe4 {[%emt 0:00:28]} 34. Bxe4 {[%emt 0:00:40]} Bxe4 {[%emt 0:00:34]} 35. Rxe4 {[%emt 0:00:03]} Rc1 {[%emt 0:00:10]} 36. Rxc1 {[%emt 0:02:46]} Rxc1+ {[%emt 0:00:11]} 37. Kh2 {[%emt 0:00:01]} Kf8 {[%emt 0:02:15]} 38. Qa5 {[%emt 0:02:12]} Ra1 {[%emt 0:01:09]} 39. Qc5+ {[%emt 0:01:27]} Ke8 {[%emt 0:01:46]} 40. Qc6+ {[%emt 0:00:37]} Ke7 {[%emt 0:00:59]} 41. Qc7+ {[%emt 0:31:26]} Ke8 {[%emt 0:05:19]} 42. Rg4 {[%emt 0:00:00]} Kf8 {[%emt 0:01:31]} 43. Qd6+ {[%emt 0:00:00]} 1-0

[Event "SWE-ch Junior 2019"]
[Site "Eskilstuna"]
[Date "2019.07.11"]
[Round "6.5"]
[White "Pantzar, Milton"]
[Black "Sundin, Emanuel"]
[Result "1-0"]
[ECO "A59"]
[WhiteElo "2357"]
[BlackElo "2134"]
[Annotator "NA"]
[PlyCount "79"]
[EventDate "2019.07.06"]
[EventType "tourn"]
[EventCountry "SWE"]
[SourceTitle "playchess.com"]
[Source "ChessBase"]
[SourceQuality "1"]
[TimeControl "40/5400+30:1800+30"]

1. d4 {[%emt 0:00:00]} Nf6 {[%emt 0:00:02]} 2. c4 {[%emt 0:00:00]} c5 {[%emt 0:01:17]} 3. d5 {[%emt 0:00:51]} b5 {[%emt 0:00:22]} 4. cxb5 {[%emt 0:00:27]} a6 {[%emt 0:00:27]} 5. bxa6 {[%emt 0:01:11]} g6 {[%emt 0:01:08]} 6. Nc3 {[%emt 0:00:35]} Bxa6 {[%emt 0:00:12]} 7. e4 {[%emt 0:01:35]} Bxf1 8. Kxf1 {[%emt 0:00:04]} d6 {[%emt 0:00:33]} 9. Nf3 {[%emt 0:00:49]} Bg7 {[%emt 0:00:48]} 10. g3 {[%emt 0:00:13]} O-O {[%emt 0:00:13]} 11. Kg2 {[%emt 0:00:13]} Nbd7 {[%emt 0:00:32]} 12. a4 {[%emt 0:03:53]} Ng4 {[%emt 0:03:26]} 13. Qe2 {[%emt 0:09:49]} Nge5 {[%emt 0:09:48]} 14. Nxe5 {[%emt 0:02:28]} Nxe5 {[%emt 0:00:26]} 15. Bd2 {[%emt 0:08:09]} Qb6 {[%emt 0:05:35]} 16. Nb5 {[%emt 0:02:58]} Rfb8 {[%emt 0:07:56]} 17. Bc3 {[%emt 0:02:14]} Qb7 {[%emt 0:02:59]} 18. b3 {[%emt 0:10:52]} Ra6 {[%emt 0:07:21]} 19. Bxe5 {[%emt 0:04:22]} Bxe5 {[%emt 0:01:34]} 20. Rad1 {[%emt 0:01:29]} Bg7 {[%emt 0:04:57]} 21. h4 {[%emt 0:01:13]} h6 {[%emt 0:02:25]} 22. h5 {[%emt 0:04:07]} g5 {[%emt 0:06:21]} 23. Rhf1 {[%emt 0:04:21]} Rc8 {[%emt 0:17:18]} 24. Rc1 {[%emt 0:05:38]} Bf6 {[%emt 0:04:22]} 25. Kh2 {[%emt 0:02:12]} Kh8 {[%emt 0:03:12]} 26. f4 {[%emt 0:05:20]} gxf4 {[%emt 0:03:19]} 27. gxf4 {[%emt 0:00:28]} Bg7 {[%emt 0:02:22]} 28. Rg1 {[%emt 0:01:22]} Raa8 {[%emt 0:00:31]} 29. Rg3 {[%emt 0:05:16]} Rg8 {[%emt 0:01:09]} 30. Rcg1 {[%emt 0:01:05]} Bf6 {[%emt 0:01:23]} 31. Rxg8+ {[%emt 0:04:19]} Rxg8 {[%emt 0:00:06]} 32. Rxg8+ {[%emt 0:00:06]} Kxg8 {[%emt 0:00:04]} 33. e5 {[%emt 0:04:50]} dxe5 {[%emt 0:01:24]} 34. fxe5 {[%emt 0:00:02]} Bg5 {[%emt 0:00:29]} 35. Qf3 {[%emt 0:01:24]} Qb8 {[%emt 0:03:44]} 36. d6 {[%emt 0:00:34]} exd6 {[%emt 0:01:44]} 37. Nxd6 {[%emt 0:01:33]} Qc7 {[%emt 0:00:25]} 38. a5 {[%emt 0:02:09]} f6 {[%emt 0:02:36]} 39. a6 {[%emt 0:01:47]} fxe5 {[%emt 0:00:53]} 40. Qf7+ {[%emt 0:01:38]} 1-0

[Event "SWE-ch Junior 2019"]
[Site "Eskilstuna"]
[Date "2019.07.13"]
[Round "8.1"]
[White "Carlsson, Ludvig"]
[Black "Sorensen, Hampus"]
[Result "1/2-1/2"]
[ECO "C85"]
[WhiteElo "2218"]
[BlackElo "2352"]
[Annotator "NA"]
[PlyCount "72"]
[EventDate "2019.07.06"]
[EventType "tourn"]
[EventCountry "SWE"]
[SourceTitle "playchess.com"]
[Source "ChessBase"]
[SourceQuality "1"]
[TimeControl "40/5400+30:1800+30"]

1. e4 {[%emt 0:00:00]} e5 {[%emt 0:00:11]} 2. Nf3 {[%emt 0:00:00]} Nc6 {[%emt 0:00:52]} 3. Bb5 {[%emt 0:00:00]} a6 {[%emt 0:01:02]} 4. Ba4 {[%emt 0:00:07]} Nf6 {[%emt 0:00:24]} 5. O-O {[%emt 0:00:10]} Be7 {[%emt 0:01:05]} 6. Bxc6 {[%emt 0:00:13]} dxc6 {[%emt 0:02:43]} 7. d3 {[%emt 0:00:06]} Nd7 {[%emt 0:02:21]} 8. b3 {[%emt 0:00:10]} O-O {[%emt 0:01:34]} 9. Bb2 {[%emt 0:00:06]} f6 {[%emt 0:02:29]} 10. Nbd2 {[%emt 0:03:03]} Nc5 {[%emt 0:05:35]} 11. Nh4 {[%emt 0:01:21]} Ne6 {[%emt 0:04:28]} 12. Nf5 {[%emt 0:02:53]} Bc5 {[%emt 0:01:22]} 13. a4 {[%emt 0:04:04]} a5 {[%emt 0:05:02]} 14. Kh1 {[%emt 0:02:07]} g6 {[%emt 0:03:17]} 15. Ng3 {[%emt 0:00:55]} Bd4 {[%emt 0:02:40]} 16. Bxd4 {[%emt 0:02:09]} Qxd4 {[%emt 0:06:17]} 17. Ne2 {[%emt 0:00:48]} Qc5 {[%emt 0:07:30]} 18. Nc4 {[%emt 0:02:09]} Kg7 {[%emt 0:02:16]} 19. Qd2 {[%emt 0:05:13]} Qb4 {[%emt 0:03:23]} 20. Qe3 {[%emt 0:02:00]} Qe7 {[%emt 0:02:12]} 21. f4 {[%emt 0:09:29]} exf4 {[%emt 0:01:01]} 22. Nxf4 {[%emt 0:00:08]} Nxf4 {[%emt 0:00:17]} 23. Rxf4 {[%emt 0:01:09]} Be6 {[%emt 0:01:45]} 24. Qd4 {[%emt 0:03:54]} c5 {[%emt 0:01:01]} 25. Qc3 {[%emt 0:00:16]} Bxc4 {[%emt 0:00:23]} 26. Qxc4 {[%emt 0:02:47]} Rad8 {[%emt 0:00:49]} 27. Qc3 {[%emt 0:00:39]} Qe5 {[%emt 0:14:44]} 28. Qxe5 {[%emt 0:00:20]} fxe5 {[%emt 0:00:22]} 29. Rff1 {[%emt 0:02:13]} Rxf1+ {[%emt 0:02:22]} 30. Rxf1 {[%emt 0:01:33]} Rf8 {[%emt 0:00:04]} 31. Rxf8 {[%emt 0:01:01]} Kxf8 {[%emt 0:00:03]} 32. g4 {[%emt 0:00:06]} g5 {[%emt 0:00:14]} 33. Kg2 {[%emt 0:00:11]} Ke7 {[%emt 0:00:44]} 34. Kf3 {[%emt 0:00:10]} c4 {[%emt 0:04:15]} 35. dxc4 {[%emt 0:01:33]} c5 {[%emt 0:00:16]} 36. c3 {[%emt 0:00:06]} b6 {[%emt 0:00:11]} 1/2-1/2

[Event "SWE-ch Junior 2019"]
[Site "Eskilstuna"]
[Date "2019.07.13"]
[Round "8.2"]
[White "Rasti, Arvin"]
[Black "Johnson, Daniel"]
[Result "0-1"]
[ECO "D37"]
[WhiteElo "2220"]
[BlackElo "2212"]
[Annotator "NA"]
[PlyCount "114"]
[EventDate "2019.07.06"]
[EventType "tourn"]
[EventCountry "SWE"]
[SourceTitle "playchess.com"]
[Source "ChessBase"]
[SourceQuality "1"]
[TimeControl "40/5400+30:1800+30"]

1. d4 {[%emt 0:00:00]} d5 {[%emt 0:06:59]} 2. c4 {[%emt 0:00:00]} e6 {[%emt 0:00:06]} 3. Nc3 {[%emt 0:00:00]} Be7 {[%emt 0:00:05]} 4. Nf3 {[%emt 0:00:00]} Nf6 {[%emt 0:00:05]} 5. Bf4 {[%emt 0:00:05]} O-O {[%emt 0:00:07]} 6. e3 {[%emt 0:00:03]} b6 {[%emt 0:00:05]} 7. cxd5 {[%emt 0:00:06]} exd5 {[%emt 0:01:16]} 8. Ne5 {[%emt 0:00:12]} Bb7 {[%emt 0:01:40]} 9. Be2 {[%emt 0:00:10]} c5 {[%emt 0:04:04]} 10. O-O {[%emt 0:02:20]} Nbd7 {[%emt 0:08:50]} 11. Rc1 {[%emt 0:01:44]} Rc8 {[%emt 0:05:15]} 12. Qb3 {[%emt 0:05:18]} c4 {[%emt 0:08:23]} 13. Qc2 {[%emt 0:00:17]} a6 {[%emt 0:00:55]} 14. Bf3 {[%emt 0:06:05]} b5 {[%emt 0:05:22]} 15. a3 {[%emt 0:01:18]} Re8 {[%emt 0:04:26]} 16. Rfd1 {[%emt 0:04:02]} Nf8 {[%emt 0:07:24]} 17. Kh1 {[%emt 0:08:55]} Ng6 {[%emt 0:08:10]} 18. Rg1 {[%emt 0:06:50]} Bd6 {[%emt 0:04:50]} 19. Nxg6 hxg6 {[%emt 0:00:16]} 20. Bg5 {[%emt 0:04:24]} Be7 {[%emt 0:01:32]} 21. Bxf6 {[%emt 0:00:51]} Bxf6 {[%emt 0:02:05]} 22. b3 {[%emt 0:00:07]} Qd7 {[%emt 0:03:51]} 23. bxc4 {[%emt 0:02:38]} dxc4 {[%emt 0:04:50]} 24. d5 {[%emt 0:01:08]} Be5 {[%emt 0:04:49]} 25. Rgd1 {[%emt 0:07:17]} Qe7 {[%emt 0:07:00]} 26. d6 {[%emt 0:00:57]} Qh4 {[%emt 0:00:25]} 27. Kg1 {[%emt 0:01:30]} Qxh2+ {[%emt 0:02:55]} 28. Kf1 {[%emt 0:00:01]} Bxf3 {[%emt 0:00:13]} 29. gxf3 {[%emt 0:00:01]} Bxd6 {[%emt 0:00:41]} 30. Ke2 {[%emt 0:01:21]} Bxa3 {[%emt 0:05:57]} 31. Rh1 {[%emt 0:00:25]} Qe5 {[%emt 0:00:49]} 32. Rb1 {[%emt 0:03:32]} b4 {[%emt 0:00:33]} 33. Ne4 {[%emt 0:00:15]} b3 {[%emt 0:00:27]} 34. Qd1 {[%emt 0:02:41]} c3 {[%emt 0:01:07]} 35. Qd7 {[%emt 0:00:43]} Qb5+ {[%emt 0:01:20]} 36. Qxb5 {[%emt 0:00:24]} axb5 {[%emt 0:00:02]} 37. Rxb3 {[%emt 0:00:22]} c2 {[%emt 0:00:43]} 38. Rxa3 {[%emt 0:00:16]} c1=Q {[%emt 0:00:08]} 39. Rxc1 {[%emt 0:00:06]} Rxc1 {[%emt 0:00:04]} 40. Rb3 {[%emt 0:00:05]} Rb8 {[%emt 0:00:53]} 41. Kd2 {[%emt 0:30:09]} Rf1 {[%emt 0:05:06]} 42. Ke2 {[%emt 0:00:00]} Ra1 {[%emt 0:01:41]} 43. Nc3 {[%emt 0:00:00]} b4 {[%emt 0:04:15]} 44. Nd5 {[%emt 0:00:00]} Ra2+ {[%emt 0:00:11]} 45. Kf1 {[%emt 0:00:00]} Ra4 {[%emt 0:01:43]} 46. e4 {[%emt 0:00:00]} f6 {[%emt 0:00:19]} 47. Kg2 {[%emt 0:00:00]} Kf7 {[%emt 0:00:11]} 48. f4 {[%emt 0:00:00]} Ke6 {[%emt 0:00:29]} 49. f3 {[%emt 0:00:00]} Kd6 {[%emt 0:00:34]} 50. Rd3 {[%emt 0:00:00]} Kc5 {[%emt 0:00:51]} 51. e5 {[%emt 0:00:28]} fxe5 {[%emt 0:00:51]} 52. fxe5 {[%emt 0:00:00]} b3 {[%emt 0:11:03]} 53. e6 {[%emt 0:00:00]} b2 {[%emt 0:02:51]} 54. Nc3 {[%emt 0:00:00]} b1=Q {[%emt 0:03:13]} 55. Nxb1 {[%emt 0:00:00]} Rxb1 {[%emt 0:00:14]} 56. e7 {[%emt 0:00:00]} Re1 {[%emt 0:00:13]} 57. Rc3+ {[%emt 0:00:00]} Kd6 {[%emt 0:00:36]} 0-1

[Event "SWE-ch Junior 2019"]
[Site "Eskilstuna"]
[Date "2019.07.13"]
[Round "8.3"]
[White "Pantzar, Milton"]
[Black "Torngren, Gustav"]
[Result "1-0"]
[ECO "E70"]
[WhiteElo "2357"]
[BlackElo "2109"]
[Annotator "NA"]
[PlyCount "89"]
[EventDate "2019.07.06"]
[EventType "tourn"]
[EventCountry "SWE"]
[SourceTitle "playchess.com"]
[Source "ChessBase"]
[SourceQuality "1"]
[TimeControl "40/5400+30:1800+30"]

1. d4 {[%emt 0:00:16]} g6 {[%emt 0:02:11]} 2. c4 {[%emt 0:01:12]} Bg7 {[%emt 0:00:28]} 3. Nc3 {[%emt 0:00:24]} c5 {[%emt 0:00:48]} 4. d5 {[%emt 0:00:19]} d6 {[%emt 0:00:25]} 5. e4 {[%emt 0:01:23]} e6 {[%emt 0:00:56]} 6. Nge2 {[%emt 0:03:17]} Nf6 {[%emt 0:00:47]} 7. Ng3 {[%emt 0:00:39]} O-O {[%emt 0:01:00]} 8. Be2 {[%emt 0:00:58]} Na6 {[%emt 0:12:12]} 9. O-O {[%emt 0:02:43]} Nc7 {[%emt 0:00:13]} 10. Bg5 {[%emt 0:03:28]} h6 {[%emt 0:02:42]} 11. Be3 {[%emt 0:00:27]} e5 {[%emt 0:11:10]} 12. a3 {[%emt 0:01:39]} Bd7 {[%emt 0:07:50]} 13. b4 {[%emt 0:01:21]} b6 {[%emt 0:00:22]} 14. Rb1 {[%emt 0:03:16]} Nfe8 {[%emt 0:04:15]} 15. Qd2 {[%emt 0:05:58]} h5 {[%emt 0:02:58]} 16. bxc5 {[%emt 0:15:09]} bxc5 {[%emt 0:00:24]} 17. Rb7 {[%emt 0:02:34]} h4 {[%emt 0:06:40]} 18. Nh1 {[%emt 0:00:18]} f5 {[%emt 0:00:30]} 19. exf5 {[%emt 0:03:49]} gxf5 {[%emt 0:03:46]} 20. f4 {[%emt 0:01:15]} e4 {[%emt 0:02:08]} 21. Rfb1 {[%emt 0:01:35]} Nf6 {[%emt 0:05:25]} 22. Nf2 {[%emt 0:02:03]} Be8 {[%emt 0:01:41]} 23. Nh3 {[%emt 0:04:13]} Nh7 {[%emt 0:05:11]} 24. Nd1 {[%emt 0:02:28]} a5 {[%emt 0:02:32]} 25. Kh1 {[%emt 0:03:52]} Bg6 {[%emt 0:05:08]} 26. R1b6 {[%emt 0:06:22]} Ra6 {[%emt 0:04:51]} 27. Bf2 {[%emt 0:06:19]} Rxb6 {[%emt 0:01:37]} 28. Rxb6 {[%emt 0:00:06]} Ne6 {[%emt 0:00:48]} 29. Qxa5 {[%emt 0:02:36]} Nd4 {[%emt 0:00:08]} 30. Bf1 {[%emt 0:00:38]} Bh5 {[%emt 0:01:03]} 31. Ne3 {[%emt 0:01:09]} Bf6 {[%emt 0:04:01]} 32. Qa6 {[%emt 0:02:36]} Be7 {[%emt 0:00:40]} 33. Rb7 {[%emt 0:01:58]} Re8 {[%emt 0:03:20]} 34. Qa7 {[%emt 0:02:27]} Nf8 {[%emt 0:02:10]} 35. Ng5 {[%emt 0:05:53]} Ng6 {[%emt 0:00:38]} 36. Ne6 {[%emt 0:03:33]} Qc8 {[%emt 0:00:19]} 37. h3 {[%emt 0:01:37]} Nxe6 {[%emt 0:01:54]} 38. dxe6 {[%emt 0:00:22]} Qxe6 {[%emt 0:00:37]} 39. Nd5 {[%emt 0:00:58]} Qf7 {[%emt 0:03:23]} 40. Bxh4 {[%emt 0:01:37]} Nxh4 {[%emt 0:00:10]} 41. Rxe7 {[%emt 0:36:21]} Rxe7 {[%emt 0:30:19]} 42. Qxe7 {[%emt 0:00:10]} Qxe7 {[%emt 0:00:55]} 43. Nxe7+ {[%emt 0:00:07]} Kf7 {[%emt 0:01:12]} 44. Nd5 {[%emt 0:00:07]} Ke6 {[%emt 0:00:00]} 45. a4 {[%emt 0:00:00] Kxd5} 1-0

[Event "SWE-ch Junior 2019"]
[Site "Eskilstuna"]
[Date "2019.07.13"]
[Round "8.4"]
[White "Storme, Isak"]
[Black "Sundin, Emanuel"]
[Result "1-0"]
[ECO "B24"]
[WhiteElo "2330"]
[BlackElo "2134"]
[Annotator "NA"]
[PlyCount "37"]
[EventDate "2019.07.06"]
[EventType "tourn"]
[EventCountry "SWE"]
[SourceTitle "playchess.com"]
[Source "ChessBase"]
[SourceQuality "1"]
[TimeControl "40/5400+30:1800+30"]

1. e4 {[%emt 0:00:00]} c5 {[%emt 0:00:00]} 2. Nc3 {[%emt 0:00:00]} Nc6 {[%emt 0:00:23]} 3. Nge2 {[%emt 0:00:00]} g6 {[%emt 0:01:09]} 4. g3 {[%emt 0:00:00]} Bg7 {[%emt 0:00:16]} 5. Bg2 {[%emt 0:00:07]} e6 {[%emt 0:04:14]} 6. d3 {[%emt 0:00:48]} Nge7 {[%emt 0:00:52]} 7. Bg5 {[%emt 0:00:31]} O-O {[%emt 0:02:20]} 8. Qd2 {[%emt 0:01:29]} Qa5 {[%emt 0:13:44]} 9. O-O {[%emt 0:02:52]} b5 {[%emt 0:04:26]} 10. e5 {[%emt 0:01:24]} Rb8 {[%emt 0:00:48]} 11. b4 {[%emt 0:18:54]} Qxb4 {[%emt 0:22:46]} 12. a4 {[%emt 0:01:33]} Nd4 {[%emt 0:18:10]} 13. Bxe7 {[%emt 0:01:20]} Nxe2+ {[%emt 0:00:11]} 14. Qxe2 {[%emt 0:00:07]} Qxc3 {[%emt 0:00:18]} 15. Bxf8 {[%emt 0:00:31]} Kxf8 {[%emt 0:07:42]} 16. axb5 {[%emt 0:00:59]} Bxe5 {[%emt 0:00:34]} 17. Rxa7 {[%emt 0:00:20]} Bd4 {[%emt 0:02:55]} 18. Rb1 {[%emt 0:00:14]} d5 {[%emt 0:01:17]} 19. Rb3 {[%emt 0:00:33]} 1-0